[Event "9th RTU Rapid 2019"]
[Site "Riga"]
[Date "2019.08.04"]
[Round "4.13"]
[White "Gukesh D"]
[Black "Low, Zhen Yu Cyrus"]
[Result "1-0"]
[WhiteElo "1683"]
[BlackElo "2169"]
[PlyCount "91"]
[EventDate "2019.08.05"]
[EventType "swiss"]
[EventCountry "LAT"]
[TimeControl "5400+30"]
[WhiteClock "0:00:22"]
[BlackClock "0:00:24"]

1. c4 {[%emt 1:15:23]} g6 {[%emt 1:15:23]} 2. Nc3 {[%emt 0:00:30]} c5 {[%emt 0:00:28]} 3. g3 {[%emt 0:00:43]} Bg7 {[%emt 0:00:26]} 4. Bg2 {[%emt 0:00:27]} Nc6 {[%emt 0:00:26]} 5. Nf3 {[%emt 0:00:32]} e5 {[%emt 0:00:27]} 6. O-O {[%emt 0:00:31]} Nge7 {[%emt 0:00:26]} 7. Ne1 {[%emt 0:00:48]} O-O {[%emt 0:00:30]} 8. Nc2 {[%emt 0:00:27]} d6 {[%emt 0:00:26]} 9. Ne3 {[%emt 0:00:32]} Be6 {[%emt 0:00:27]} 10. d3 {[%emt 0:00:34]} Qd7 {[%emt 0:00:27]} 11. Ned5 {[%emt 0:00:30]} Bh3 {[%emt 0:00:34]} 12. e4 {[%emt 0:01:32]} Bxg2 {[%emt 0:00:46]} 13. Kxg2 {[%emt 0:00:27]} f5 {[%emt 0:00:28]} 14. f3 {[%emt 0:00:59]} Rab8 {[%emt 0:01:03]} 15. Rb1 {[%emt 0:00:38]} a6 {[%emt 0:00:36]} 16. b4 {[%emt 0:02:14]} Kh8 {[%emt 0:03:45]} 17. bxc5 {[%emt 0:00:59]} dxc5 {[%emt 0:00:26]} 18. Na4 {[%emt 0:00:46]} fxe4 {[%emt 0:02:44]} 19. dxe4 {[%emt 0:00:39]} Nd4 {[%emt 0:00:54]} 20. Nxc5 {[%emt 0:00:43]} Qd6 {[%emt 0:00:54]} 21. Nxb7 {[%emt 0:01:36]} Qd7 {[%emt 0:00:26]} 22. Nc5 {[%emt 0:00:39]} Qd6 {[%emt 0:00:46]} 23. Ba3 {[%emt 0:01:35]} Nxd5 {[%emt 0:01:48]} 24. exd5 {[%emt 0:01:49]} Rbc8 {[%emt 0:00:42]} 25. Rb7 {[%emt 0:02:46]} Rxc5 {[%emt 0:00:51]} 26. Qd3 {[%emt 0:00:36]} Rfc8 {[%emt 0:00:43]} 27. Rfb1 {[%emt 0:01:08]} Qf8 {[%emt 0:01:32]} 28. Ra7 {[%emt 0:01:09]} Nxf3 {[%emt 0:01:38]} 29. Rf1 {[%emt 0:02:05]} e4 {[%emt 0:02:33]} 30. Qxe4 {[%emt 0:00:32]} Qg8 {[%emt 0:00:59]} 31. Bxc5 {[%emt 0:00:59]} Nd2 {[%emt 0:00:26]} 32. Rxg7 {[%emt 0:00:41]} Nxe4 {[%emt 0:01:02]} 33. Rxg8+ Kxg8 {[%emt 0:00:26]} 34. Be7 {[%emt 0:01:16]} Rxc4 {[%emt 0:00:29]} 35. Rf4 {[%emt 0:00:30]} g5 {[%emt 0:00:50]} 36. Rf5 {[%emt 0:00:33]} g4 {[%emt 0:00:33]} 37. Kf1 {[%emt 0:00:26]} Rd4 {[%emt 0:00:37]} 38. Rf8+ {[%emt 0:00:28]} Kg7 {[%emt 0:00:25]} 39. Rf4 {[%emt 0:00:32]} Rd1+ {[%emt 0:00:35]} 40. Kg2 {[%emt 0:00:28]} Rd2+ {[%emt 0:00:26]} 41. Kf1 {[%emt 0:00:33]} Rd1+ {[%emt 0:00:26]} 42. Ke2 {[%emt 0:00:29]} Nc3+ {[%emt 0:00:26]} 43. Kf2 {[%emt 0:00:27]} Rxd5 {[%emt 0:00:54]} 44. Bf6+ {[%emt 0:00:06]} Kg6 {[%emt 0:00:30]} 45. Bxc3 {[%emt 0:00:47]} Rc5 {[%emt 0:00:29]} 46. Rxg4+ {[%emt 0:00:32]} 1-0

[Event "9th RTU Rapid 2019"]
[Site "Riga"]
[Date "2019.08.04"]
[Round "4.14"]
[White "Nevednichy, Vladislav"]
[Black "Brikers, Aleksandrs"]
[Result "1-0"]
[WhiteElo "2495"]
[BlackElo "2011"]
[PlyCount "63"]
[EventDate "2019.08.05"]
[EventType "swiss"]
[EventCountry "LAT"]
[TimeControl "5400+30"]
[WhiteClock "0:00:08"]
[BlackClock "0:03:49"]

1. e4 {[%emt 1:15:22]} e5 {[%emt 1:15:22]} 2. Nf3 {[%emt 0:00:28]} Nc6 {[%emt 0:00:27]} 3. Bc4 {[%emt 0:00:26]} Bc5 {[%emt 0:00:26]} 4. d3 {[%emt 0:00:27]} Nf6 {[%emt 0:00:29]} 5. Nc3 {[%emt 0:00:28]} d6 {[%emt 0:00:30]} 6. Bg5 {[%emt 0:00:27]} h6 {[%emt 0:00:36]} 7. Bxf6 {[%emt 0:00:27]} Qxf6 {[%emt 0:00:28]} 8. Nd5 {[%emt 0:00:26]} Qd8 {[%emt 0:00:26]} 9. c3 {[%emt 0:00:27]} Be6 {[%emt 0:01:00]} 10. b4 {[%emt 0:01:02]} Bb6 {[%emt 0:00:29]} 11. a4 {[%emt 0:00:27]} a5 {[%emt 0:00:51]} 12. Nxb6 {[%emt 0:01:01]} cxb6 {[%emt 0:00:30]} 13. Bxe6 {[%emt 0:00:31]} fxe6 {[%emt 0:00:27]} 14. b5 {[%emt 0:01:27]} Nb8 {[%emt 0:01:55]} 15. d4 {[%emt 0:00:29]} Nd7 {[%emt 0:00:32]} 16. Qb3 {[%emt 0:01:15]} Qe7 {[%emt 0:01:31]} 17. Qa3 {[%emt 0:00:28]} exd4 {[%emt 0:01:32]} 18. cxd4 {[%emt 0:00:30]} e5 {[%emt 0:02:21]} 19. O-O {[%emt 0:00:33]} Kf7 {[%emt 0:03:03]} 20. Rad1 {[%emt 0:00:59]} Rhd8 {[%emt 0:01:07]} 21. Rd3 {[%emt 0:00:51]} exd4 {[%emt 0:01:18]} 22. Nxd4 {[%emt 0:01:13]} Nc5 {[%emt 0:00:59]} 23. Nf5 {[%emt 0:00:46]} Qe6 {[%emt 0:00:47]} 24. Rg3 {[%emt 0:02:22]} Nxe4 {[%emt 0:02:21]} 25. Rxg7+ {[%emt 0:03:16]} Kf6 {[%emt 0:00:31]} 26. Qf3 {[%emt 0:00:36]} Ng5 {[%emt 0:01:15]} 27. Qh5 {[%emt 0:02:39]} Kxf5 {[%emt 0:01:18]} 28. f4 {[%emt 0:00:29]} Qe3+ {[%emt 0:01:21]} 29. Kh1 {[%emt 0:00:28]} Ke6 {[%emt 0:00:30]} 30. fxg5 {[%emt 0:00:41]} hxg5 {[%emt 0:00:27]} 31. Qg4+ {[%emt 0:00:42]} Kd5 {[%emt 0:00:33]} 32. Rxg5+ {[%emt 0:00:28]} 1-0

[Event "9th RTU Rapid 2019"]
[Site "Riga"]
[Date "2019.08.04"]
[Round "4.15"]
[White "Omelja, Artem"]
[Black "Sertbay, Huseyin"]
[Result "1-0"]
[WhiteElo "2436"]
[BlackElo "2066"]
[PlyCount "61"]
[EventDate "2019.08.05"]
[EventType "swiss"]
[EventCountry "LAT"]
[TimeControl "5400+30"]
[WhiteClock "0:02:04"]
[BlackClock "0:12:22"]

1. d4 {[%emt 1:15:23]} Nf6 {[%emt 1:15:21]} 2. c4 {[%emt 0:00:27]} c5 {[%emt 0:00:26]} 3. d5 {[%emt 0:00:28]} e5 {[%emt 0:00:26]} 4. Nc3 {[%emt 0:00:27]} d6 {[%emt 0:00:26]} 5. e4 {[%emt 0:00:26]} Nbd7 {[%emt 0:00:26]} 6. Bd3 {[%emt 0:01:10]} Be7 {[%emt 0:00:26]} 7. Nge2 {[%emt 0:00:32]} Nf8 {[%emt 0:00:29]} 8. f3 {[%emt 0:00:35]} Ng6 {[%emt 0:00:33]} 9. g3 {[%emt 0:00:32]} O-O {[%emt 0:02:05]} 10. Be3 {[%emt 0:00:27]} h6 {[%emt 0:00:28]} 11. Qd2 {[%emt 0:00:27]} Nh7 {[%emt 0:00:43]} 12. f4 {[%emt 0:00:52]} exf4 {[%emt 0:00:33]} 13. gxf4 {[%emt 0:00:27]} Bf6 {[%emt 0:00:33]} 14. Ng3 {[%emt 0:00:35]} Re8 {[%emt 0:00:39]} 15. O-O-O {[%emt 0:00:34]} Qa5 {[%emt 0:00:44]} 16. Rhg1 {[%emt 0:00:35]} a6 {[%emt 0:00:49]} 17. Nh5 {[%emt 0:00:30]} Bxc3 {[%emt 0:00:27]} 18. Qxc3 {[%emt 0:00:51]} Qxc3+ {[%emt 0:00:28]} 19. bxc3 {[%emt 0:00:27]} Nhf8 {[%emt 0:05:26]} 20. Rg3 {[%emt 0:00:50]} b5 {[%emt 0:02:49]} 21. f5 {[%emt 0:00:32]} bxc4 {[%emt 0:00:27]} 22. Bc2 {[%emt 0:00:32]} Kh7 {[%emt 0:02:00]} 23. Rdg1 {[%emt 0:00:46]} Bd7 {[%emt 0:00:37]} 24. h4 {[%emt 0:00:33]} Re7 {[%emt 0:01:09]} 25. fxg6+ {[%emt 0:00:36]} fxg6 {[%emt 0:01:06]} 26. Nf4 {[%emt 0:00:30]} Be8 {[%emt 0:00:26]} 27. e5 {[%emt 0:00:59]} Rxe5 {[%emt 0:00:33]} 28. h5 {[%emt 0:00:26]} Ra7 {[%emt 0:00:51]} 29. Nxg6 {[%emt 0:00:42]} Bxg6 {[%emt 0:01:03]} 30. hxg6+ {[%emt 0:00:28]} Kg8 {[%emt 0:00:27]} 31. Bf4 {[%emt 0:00:29]} 1-0

[Event "9th RTU Rapid 2019"]
[Site "Riga"]
[Date "2019.08.04"]
[Round "4.16"]
[White "Babrauskas, Darius"]
[Black "Galchenko, Matvey"]
[Result "0-1"]
[WhiteElo "1988"]
[BlackElo "2360"]
[PlyCount "60"]
[EventDate "2019.08.05"]
[EventType "swiss"]
[EventCountry "LAT"]
[TimeControl "5400+30"]
[WhiteClock "0:11:49"]
[BlackClock "0:03:26"]

1. e4 {[%emt 1:15:21]} e6 {[%emt 1:15:30]} 2. d4 {[%emt 0:00:27]} d5 {[%emt 0:00:26]} 3. Nc3 {[%emt 0:00:01]} Bb4 4. e5 {[%emt 0:00:54]} Ne7 {[%emt 0:00:52]} 5. a3 {[%emt 0:00:26]} Bxc3+ {[%emt 0:00:25]} 6. bxc3 {[%emt 0:00:28]} c5 {[%emt 0:00:26]} 7. Qg4 {[%emt 0:00:29]} cxd4 {[%emt 0:00:26]} 8. Qxg7 {[%emt 0:00:50]} Rg8 {[%emt 0:00:25]} 9. Qxh7 {[%emt 0:00:27]} Qc7 {[%emt 0:00:28]} 10. Ne2 {[%emt 0:00:27]} Nbc6 {[%emt 0:00:26]} 11. f4 {[%emt 0:00:28]} Bd7 {[%emt 0:00:26]} 12. Qd3 {[%emt 0:00:27]} dxc3 {[%emt 0:00:27]} 13. Rg1 {[%emt 0:00:33]} d4 {[%emt 0:00:42]} 14. g4 {[%emt 0:00:30]} Qb6 {[%emt 0:00:31]} 15. Rg3 {[%emt 0:00:53]} O-O-O {[%emt 0:00:41]} 16. Bg2 {[%emt 0:00:27]} Rh8 {[%emt 0:00:50]} 17. h3 {[%emt 0:01:20]} Kb8 {[%emt 0:00:31]} 18. Be4 {[%emt 0:02:15]} Be8 {[%emt 0:00:50]} 19. Qc4 {[%emt 0:02:42]} Rc8 {[%emt 0:00:49]} 20. Qa2 {[%emt 0:00:39]} Na5 {[%emt 0:00:59]} 21. Rb1 {[%emt 0:00:42]} Qc5 {[%emt 0:00:28]} 22. Bd3 {[%emt 0:00:30]} Nd5 {[%emt 0:00:31]} 23. Kf2 {[%emt 0:01:41]} Ba4 {[%emt 0:00:34]} 24. Rf3 {[%emt 0:01:07]} Nc4 {[%emt 0:00:57]} 25. Kg3 {[%emt 0:02:48]} Rc7 {[%emt 0:01:09]} 26. Be4 {[%emt 0:01:28]} f5 {[%emt 0:01:12]} 27. exf6 {[%emt 0:00:40]} Nxf6 {[%emt 0:00:27]} 28. Bd3 {[%emt 0:00:27]} Qd5 {[%emt 0:00:47]} 29. Rb4 {[%emt 0:01:30]} Rxh3+ {[%emt 0:00:30]} 30. Kxh3 {[%emt 0:00:37]} Qxf3+ {[%emt 0:00:26]} 0-1

[Event "9th RTU Rapid 2019"]
[Site "Riga"]
[Date "2019.08.04"]
[Round "4.17"]
[White "Nesteretz, Anatoliy"]
[Black "Daudzvardis, Janis"]
[Result "1-0"]
[WhiteElo "2317"]
[BlackElo "2037"]
[PlyCount "117"]
[EventDate "2019.08.05"]
[EventType "swiss"]
[EventCountry "LAT"]
[TimeControl "5400+30"]
[WhiteClock "0:09:54"]
[BlackClock "0:00:15"]

1. d4 {[%emt 1:15:26]} c5 {[%emt 1:15:23]} 2. d5 {[%emt 0:00:27]} e5 {[%emt 0:00:27]} 3. Nc3 {[%emt 0:00:28]} d6 {[%emt 0:00:27]} 4. e4 {[%emt 0:00:26]} Be7 {[%emt 0:00:28]} 5. Nf3 {[%emt 0:00:51]} Nf6 {[%emt 0:00:29]} 6. Be2 {[%emt 0:01:01]} O-O {[%emt 0:00:30]} 7. O-O {[%emt 0:00:32]} Ne8 {[%emt 0:00:34]} 8. Nd2 {[%emt 0:01:06]} Nd7 {[%emt 0:01:01]} 9. a4 {[%emt 0:01:01]} g6 {[%emt 0:00:32]} 10. a5 {[%emt 0:00:48]} a6 {[%emt 0:00:49]} 11. Nc4 {[%emt 0:00:33]} Bg5 {[%emt 0:00:29]} 12. Na4 {[%emt 0:02:16]} Bxc1 {[%emt 0:00:28]} 13. Qxc1 {[%emt 0:00:29]} f5 {[%emt 0:00:37]} 14. exf5 {[%emt 0:00:50]} gxf5 {[%emt 0:00:27]} 15. f4 {[%emt 0:01:45]} e4 {[%emt 0:00:31]} 16. Ra3 {[%emt 0:00:46]} Ndf6 {[%emt 0:00:31]} 17. Nab6 {[%emt 0:00:48]} Rb8 {[%emt 0:00:27]} 18. Qe1 {[%emt 0:01:25]} Rf7 {[%emt 0:01:13]} 19. Qh4 {[%emt 0:01:23]} Qe7 {[%emt 0:00:36]} 20. Rh3 {[%emt 0:04:18]} Bd7 {[%emt 0:01:01]} 21. Ne3 {[%emt 0:00:29]} Rg7 {[%emt 0:01:42]} 22. Kh1 {[%emt 0:01:07]} Rd8 {[%emt 0:00:54]} 23. c3 {[%emt 0:01:18]} Nc7 {[%emt 0:01:21]} 24. Nxd7 {[%emt 0:01:10]} Nxd7 {[%emt 0:00:30]} 25. Qxe7 {[%emt 0:00:39]} Rxe7 {[%emt 0:00:27]} 26. Nxf5 {[%emt 0:00:27]} Ree8 {[%emt 0:00:40]} 27. Nxd6 {[%emt 0:00:40]} Rf8 {[%emt 0:00:27]} 28. Nxe4 {[%emt 0:00:32]} Rde8 {[%emt 0:00:36]} 29. Bd3 {[%emt 0:00:43]} b5 {[%emt 0:00:39]} 30. axb6 {[%emt 0:00:31]} Nxb6 {[%emt 0:00:28]} 31. d6 {[%emt 0:00:32]} Ne6 {[%emt 0:00:57]} 32. f5 {[%emt 0:00:31]} c4 {[%emt 0:00:38]} 33. Bc2 {[%emt 0:00:30]} Nd8 {[%emt 0:00:44]} 34. f6 {[%emt 0:00:43]} Nf7 {[%emt 0:00:30]} 35. Rg3+ {[%emt 0:00:30]} Kh8 {[%emt 0:00:26]} 36. Rg7 {[%emt 0:00:29]} Rd8 {[%emt 0:00:26]} 37. Ng3 {[%emt 0:00:44]} Rxd6 {[%emt 0:00:43]} 38. Rxh7+ {[%emt 0:00:26]} Kg8 {[%emt 0:00:26]} 39. Rg7+ {[%emt 0:00:02]} Kh8 40. Ne4 {[%emt 0:00:59]} Re6 {[%emt 0:01:00]} 41. Rf3 {[%emt 0:00:35]} Rxf6 {[%emt 0:00:08]} 42. Rxf6 {[%emt 0:00:29]} Kxg7 {[%emt 0:00:50]} 43. Rxb6 {[%emt 0:00:28]} a5 {[%emt 0:00:39]} 44. h3 {[%emt 0:00:27]} Ra8 {[%emt 0:00:30]} 45. Rb7 {[%emt 0:00:27]} Kf8 {[%emt 0:00:28]} 46. Kg1 {[%emt 0:00:37]} a4 {[%emt 0:00:27]} 47. Rb4 {[%emt 0:00:27]} a3 {[%emt 0:00:26]} 48. bxa3 {[%emt 0:00:01]} Rxa3 {[%emt 0:00:03]} 49. Rxc4 {[%emt 0:00:59]} Ra2 {[%emt 0:00:49]} 50. Bb3 {[%emt 0:00:35]} Ra1+ {[%emt 0:00:29]} 51. Kh2 {[%emt 0:00:29]} Ne5 {[%emt 0:00:27]} 52. Rc8+ {[%emt 0:00:28]} Ke7 {[%emt 0:00:27]} 53. Bd5 {[%emt 0:00:35]} Nd3 {[%emt 0:00:28]} 54. c4 {[%emt 0:00:29]} Rc1 {[%emt 0:00:26]} 55. c5 {[%emt 0:00:28]} Rc2 {[%emt 0:00:27]} 56. c6 {[%emt 0:00:33]} Nf4 {[%emt 0:00:26]} 57. Rc7+ {[%emt 0:00:33]} Ke8 {[%emt 0:00:34]} 58. Nd6+ {[%emt 0:00:28]} Kd8 {[%emt 0:00:28]} 59. Rd7# {[%emt 0:00:26]} 1-0

[Event "9th RTU Rapid 2019"]
[Site "Riga"]
[Date "2019.08.04"]
[Round "4.18"]
[White "Kiik, Kalle"]
[Black "Kurpnieks, Vairis"]
[Result "1-0"]
[WhiteElo "2308"]
[BlackElo "1983"]
[PlyCount "141"]
[EventDate "2019.08.05"]
[EventType "swiss"]
[EventCountry "LAT"]
[TimeControl "5400+30"]
[WhiteClock "0:04:51"]
[BlackClock "0:04:43"]

1. e4 {[%emt 1:15:22]} e5 {[%emt 1:15:22]} 2. Nf3 {[%emt 0:00:27]} f5 {[%emt 0:00:26]} 3. Nxe5 {[%emt 0:00:34]} Nc6 {[%emt 0:00:26]} 4. Nxc6 {[%emt 0:00:47]} dxc6 {[%emt 0:00:26]} 5. Nc3 {[%emt 0:00:32]} Nf6 {[%emt 0:00:27]} 6. e5 {[%emt 0:00:42]} Ng4 {[%emt 0:00:26]} 7. d4 {[%emt 0:00:40]} c5 {[%emt 0:00:26]} 8. d5 {[%emt 0:01:48]} Nxe5 {[%emt 0:00:33]} 9. Bb5+ {[%emt 0:01:00]} Kf7 {[%emt 0:00:28]} 10. O-O {[%emt 0:01:21]} Bd6 {[%emt 0:00:27]} 11. Be2 {[%emt 0:00:35]} Bd7 {[%emt 0:00:52]} 12. h3 {[%emt 0:00:37]} Rf8 {[%emt 0:01:29]} 13. f4 {[%emt 0:00:45]} Ng6 {[%emt 0:00:28]} 14. g3 {[%emt 0:00:41]} Kg8 {[%emt 0:00:28]} 15. Be3 {[%emt 0:00:55]} a6 {[%emt 0:00:39]} 16. a4 {[%emt 0:00:27]} b6 {[%emt 0:00:27]} 17. Qd2 {[%emt 0:00:33]} Qf6 {[%emt 0:00:35]} 18. Rfe1 {[%emt 0:01:32]} Rfd8 {[%emt 0:00:43]} 19. Bf2 {[%emt 0:00:49]} Ne7 {[%emt 0:00:47]} 20. Bf1 {[%emt 0:00:39]} Nc8 {[%emt 0:01:02]} 21. Rad1 {[%emt 0:00:35]} Ne7 {[%emt 0:01:21]} 22. Bc4 {[%emt 0:00:33]} Rdb8 {[%emt 0:00:29]} 23. Qe2 {[%emt 0:00:53]} Ng6 {[%emt 0:00:37]} 24. Qf1 {[%emt 0:01:00]} h5 {[%emt 0:03:18]} 25. h4 {[%emt 0:00:30]} Nh8 {[%emt 0:00:29]} 26. Bxa6 {[%emt 0:00:49]} Nf7 {[%emt 0:00:27]} 27. Bb5 {[%emt 0:00:39]} Bxb5 {[%emt 0:00:27]} 28. Qxb5 {[%emt 0:00:34]} Nh6 {[%emt 0:00:29]} 29. Re6 {[%emt 0:00:39]} Qf7 {[%emt 0:00:33]} 30. Rde1 {[%emt 0:00:31]} Ng4 {[%emt 0:00:31]} 31. Qc4 {[%emt 0:00:37]} Re8 {[%emt 0:00:43]} 32. b3 {[%emt 0:00:33]} Re7 {[%emt 0:00:30]} 33. Nb5 {[%emt 0:00:33]} Rae8 {[%emt 0:00:34]} 34. Kg2 {[%emt 0:01:20]} Nf6 {[%emt 0:00:33]} 35. Nc3 {[%emt 0:00:45]} Ng4 {[%emt 0:00:47]} 36. Bg1 {[%emt 0:00:26]} Kf8 {[%emt 0:00:31]} 37. a5 {[%emt 0:00:30]} bxa5 {[%emt 0:00:26]} 38. Bxc5 {[%emt 0:00:32]} Kg8 {[%emt 0:00:41]} 39. Bxd6 {[%emt 0:00:34]} cxd6 {[%emt 0:00:27]} 40. Rxe7 {[%emt 0:00:55]} Rxe7 {[%emt 0:00:30]} 41. Qc8+ {[%emt 0:00:27]} Kh7 {[%emt 0:00:27]} 42. Rxe7 {[%emt 0:00:27]} Qxe7 {[%emt 0:00:26]} 43. Qxf5+ {[%emt 0:00:27]} g6 {[%emt 0:00:29]} 44. Qe4 {[%emt 0:01:00]} Ne3+ {[%emt 0:00:34]} 45. Kf3 {[%emt 0:00:32]} Qxe4+ {[%emt 0:00:28]} 46. Nxe4 {[%emt 0:00:45]} Nxc2 {[%emt 0:00:52]} 47. Nxd6 {[%emt 0:00:27]} Nd4+ {[%emt 0:00:29]} 48. Ke4 {[%emt 0:00:28]} Nxb3 {[%emt 0:00:25]} 49. Nc4 {[%emt 0:00:36]} Kg7 {[%emt 0:00:37]} 50. Ke5 {[%emt 0:00:26]} Kf7 {[%emt 0:00:29]} 51. d6 {[%emt 0:00:32]} a4 {[%emt 0:00:26]} 52. f5 {[%emt 0:00:32]} gxf5 {[%emt 0:00:28]} 53. Kxf5 {[%emt 0:00:27]} Nd4+ {[%emt 0:00:30]} 54. Kg5 {[%emt 0:00:35]} Nb5 {[%emt 0:00:29]} 55. d7 {[%emt 0:00:38]} Ke7 {[%emt 0:00:29]} 56. Kxh5 {[%emt 0:00:29]} Kxd7 {[%emt 0:00:29]} 57. Kg6 {[%emt 0:00:28]} Nd6 {[%emt 0:01:30]} 58. Nb6+ {[%emt 0:00:27]} Ke6 {[%emt 0:00:27]} 59. Nxa4 {[%emt 0:00:27]} Nf5 {[%emt 0:00:27]} 60. h5 {[%emt 0:00:31]} Ne7+ {[%emt 0:01:28]} 61. Kg5 {[%emt 0:00:26]} Kf7 {[%emt 0:00:31]} 62. Nc5 {[%emt 0:00:26]} Ng8 {[%emt 0:00:34]} 63. Ne4 {[%emt 0:00:27]} Kg7 {[%emt 0:00:30]} 64. g4 {[%emt 0:00:29]} Nh6 {[%emt 0:00:27]} 65. Nd6 {[%emt 0:00:29]} Kh7 {[%emt 0:00:37]} 66. Nf5 {[%emt 0:00:31]} Nf7+ {[%emt 0:00:45]} 67. Kf6 {[%emt 0:00:31]} Kg8 {[%emt 0:00:42]} 68. g5 {[%emt 0:00:48]} Kf8 {[%emt 0:01:16]} 69. g6 {[%emt 0:00:34]} Kg8 {[%emt 0:00:52]} 70. Ne7+ {[%emt 0:00:34]} Kf8 {[%emt 0:00:36]} 71. g7+ {[%emt 0:00:37]} 1-0

[Event "9th RTU Rapid 2019"]
[Site "Riga"]
[Date "2019.08.04"]
[Round "4.19"]
[White "Reizniece-Ozola, Dana"]
[Black "Korchagin, Oleg"]
[Result "1-0"]
[WhiteElo "2261"]
[BlackElo "2056"]
[PlyCount "66"]
[EventDate "2019.08.05"]
[EventType "swiss"]
[EventCountry "LAT"]
[TimeControl "5400+30"]
[WhiteClock "0:00:20"]
[BlackClock "0:01:17"]

1. c4 {[%emt 1:15:21]} Nf6 {[%emt 1:15:30]} 2. Nc3 {[%emt 0:00:34]} g6 {[%emt 0:00:29]} 3. g3 {[%emt 0:00:29]} d5 {[%emt 0:01:03]} 4. cxd5 {[%emt 0:00:26]} Nxd5 {[%emt 0:00:27]} 5. Bg2 {[%emt 0:00:26]} Nb6 {[%emt 0:00:35]} 6. Nf3 {[%emt 0:00:49]} Bg7 {[%emt 0:00:26]} 7. h4 {[%emt 0:02:02]} h6 {[%emt 0:01:07]} 8. d3 {[%emt 0:00:36]} Nc6 {[%emt 0:00:48]} 9. Bd2 {[%emt 0:00:30]} e5 {[%emt 0:01:19]} 10. Qc1 {[%emt 0:00:47]} Be6 {[%emt 0:01:08]} 11. Ne4 {[%emt 0:00:53]} Nd7 {[%emt 0:01:07]} 12. Be3 {[%emt 0:03:46]} Ne7 {[%emt 0:04:18]} 13. O-O {[%emt 0:02:03]} Nf5 {[%emt 0:00:55]} 14. Nc5 {[%emt 0:01:01]} Nxc5 {[%emt 0:00:32]} 15. Bxc5 {[%emt 0:00:37]} b6 {[%emt 0:01:06]} 16. Ba3 {[%emt 0:00:44]} c5 {[%emt 0:01:56]} 17. b4 {[%emt 0:01:06]} Rc8 {[%emt 0:00:50]} 18. bxc5 {[%emt 0:00:34]} bxc5 {[%emt 0:00:29]} 19. Qd2 {[%emt 0:02:13]} O-O {[%emt 0:01:36]} 20. Rac1 {[%emt 0:00:30]} Qb6 {[%emt 0:00:40]} 21. e4 {[%emt 0:01:24]} Nd6 {[%emt 0:01:32]} 22. Qe3 {[%emt 0:01:04]} Nb7 {[%emt 0:01:39]} 23. Rb1 {[%emt 0:00:34]} Qa6 {[%emt 0:00:27]} 24. Bb2 {[%emt 0:00:38]} f6 {[%emt 0:00:30]} 25. a3 {[%emt 0:01:41]} Rfd8 {[%emt 0:00:28]} 26. Rfd1 {[%emt 0:00:32]} Bb3 {[%emt 0:00:45]} 27. Rd2 {[%emt 0:00:27]} Be6 {[%emt 0:00:50]} 28. Ne1 {[%emt 0:00:43]} Kh7 {[%emt 0:00:43]} 29. f4 {[%emt 0:00:31]} h5 {[%emt 0:00:30]} 30. fxe5 {[%emt 0:00:30]} Bh6 {[%emt 0:00:26]} 31. Qf2 {[%emt 0:00:47]} Bxd2 {[%emt 0:00:46]} 32. Qxd2 {[%emt 0:00:26]} f5 {[%emt 0:00:43]} 33. Bc1 {[%emt 0:00:29]} Ba2 {[%emt 0:00:20]} 1-0

[Event "9th RTU Rapid 2019"]
[Site "Riga"]
[Date "2019.08.04"]
[Round "4.20"]
[White "Walkusz, Witoslaw"]
[Black "Kretainis, Kristaps"]
[Result "1-0"]
[WhiteElo "2138"]
[BlackElo "2252"]
[PlyCount "69"]
[EventDate "2019.08.05"]
[EventType "swiss"]
[EventCountry "LAT"]
[TimeControl "5400+30"]
[WhiteClock "0:13:46"]
[BlackClock "0:03:06"]

1. e4 {[%emt 1:15:21]} b6 {[%emt 1:15:20]} 2. d4 {[%emt 0:00:27]} Bb7 {[%emt 0:00:25]} 3. Nc3 {[%emt 0:00:28]} e6 {[%emt 0:00:26]} 4. Bd3 {[%emt 0:00:32]} Bb4 {[%emt 0:00:26]} 5. Bd2 {[%emt 0:01:13]} f5 {[%emt 0:00:45]} 6. Nge2 {[%emt 0:05:30]} fxe4 {[%emt 0:00:31]} 7. Nxe4 {[%emt 0:00:39]} Bxd2+ {[%emt 0:00:27]} 8. Qxd2 {[%emt 0:00:45]} Nf6 {[%emt 0:00:26]} 9. f3 {[%emt 0:01:24]} Nxe4 {[%emt 0:00:36]} 10. fxe4 {[%emt 0:00:37]} O-O {[%emt 0:00:26]} 11. O-O-O {[%emt 0:00:41]} Nc6 {[%emt 0:00:35]} 12. c3 {[%emt 0:01:18]} Qh4 {[%emt 0:00:36]} 13. g3 {[%emt 0:00:38]} Qg4 {[%emt 0:00:30]} 14. Rhf1 {[%emt 0:01:03]} Rxf1 {[%emt 0:00:34]} 15. Rxf1 {[%emt 0:00:26]} Rf8 {[%emt 0:00:26]} 16. Rxf8+ {[%emt 0:00:39]} Kxf8 {[%emt 0:00:21]} 17. e5 {[%emt 0:00:34]} g6 {[%emt 0:00:45]} 18. Qh6+ {[%emt 0:00:44]} Kg8 {[%emt 0:00:31]} 19. h3 {[%emt 0:02:03]} Qf3 {[%emt 0:00:30]} 20. Nf4 {[%emt 0:00:52]} Qxg3 {[%emt 0:01:35]} 21. Nh5 {[%emt 0:01:20]} gxh5 {[%emt 0:00:36]} 22. Bxh7+ {[%emt 0:00:33]} Kf7 {[%emt 0:00:26]} 23. Qf6+ {[%emt 0:00:30]} Ke8 {[%emt 0:00:39]} 24. Bg6+ {[%emt 0:00:29]} Qxg6 {[%emt 0:00:29]} 25. Qxg6+ {[%emt 0:00:26]} Ke7 {[%emt 0:00:30]} 26. Qh7+ {[%emt 0:00:32]} Ke8 {[%emt 0:00:43]} 27. Qxh5+ {[%emt 0:00:02]} Ke7 28. Qh7+ {[%emt 0:00:54]} Ke8 {[%emt 0:00:51]} 29. Qg8+ {[%emt 0:00:30]} Ke7 {[%emt 0:00:26]} 30. h4 {[%emt 0:00:26]} Nd8 {[%emt 0:00:28]} 31. Qg5+ {[%emt 0:00:34]} Ke8 {[%emt 0:00:26]} 32. h5 {[%emt 0:00:37]} Nf7 {[%emt 0:00:26]} 33. Qf6 {[%emt 0:00:35]} Be4 {[%emt 0:00:27]} 34. h6 {[%emt 0:00:32]} Bf5 {[%emt 0:00:36]} 35. Qg7 {[%emt 0:00:30]} 1-0